bitfinex/quotes_SOLUSD_20241117
["timestamp","ask_amount","ask_price","bid_price","bid_amount"]
[1731814728223,24.18671139,218.12,218.07,4.5855]
[1731814728427,24.18671139,218.11,218.07,16.0497]
[1731814728636,24.18671139,218.08,218.01,15.4383]
[1731814728829,24.18671139,218.04,218.02,11.4665]
[1731814729223,24.18671139,218.05,218.02,11.4665]
[1731814729425,4.684,218.15,218.03,0.09367462]
[1731814729426,24.18671139,218.07,218.03,0.09367462]
[1731814729630,24.18671139,218.08,218.02,16.0532]
[1731814729833,24.18671139,218.08,218.03,0.09367462]
[1731814730021,24.18671139,218.07,218.03,0.09367462]
[1731814730223,24.18671139,218.06,218.02,16.0532]
[1731814730453,24.18671139,218.05,218.02,11.4665]
[1731814731025,24.18671139,218.06,218.02,11.4665]
[1731814731237,24.18671139,218.08,218.03,0.09367462]
[1731814731522,24.18671139,218.09,218.03,0.21916462]
[1731814732131,24.18671139,218.1,218.03,0.21916462]
[1731814732534,24.18671139,218.09,218.03,0.21916462]
[1731814733735,24.18671139,218.09,218.03,4.80546462]
[1731814734449,24.18671139,218.08,218.02,11.4665]
[1731814734921,24.18671139,218.08,218.02,16.0532]
[1731814735128,24.18671139,218.07,218.02,16.0532]
[1731814736124,24.18671139,218.09,218.02,16.0532]
[1731814736538,24.18671139,218.08,218.02,16.0532]
[1731814738348,24.18671139,218.09,218.02,16.0532]
[1731814739243,24.18671139,218.09,218.02,40.23991139]
[1731814739451,24.18671139,218.11,218.04,24.18671139]
[1731814739748,24.18671139,218.11,218.05,0.21916462]
[1731814740120,24.18671139,218.1,218.03,16.17809]
[1731814740325,24.18671139,218.07,218.03,16.0526]
[1731814740548,24.18671139,218.07,218.03,11.4663]
[1731814742847,15.1382464,218.07,218.01,0.09367462]
[1731814743053,15.1382464,218.07,218.01,0.34465462]
[1731814744437,15.1382464,218.08,218.02,16.0535]
[1731814746258,15.1382464,218.09,218.02,16.0535]
[1731814746631,15.1382464,218.09,218.02,31.1917464]
[1731814747331,15.1382464,218.1,218.03,15.48290102]
[1731814747535,15.1382464,218.11,218.04,15.1382464]
[1731814748656,15.1382464,218.15,218.07,15.1382464]
[1731814748833,15.1382464,218.16,218.08,15.48290102]
[1731814749339,15.1382464,218.16,218.09,15.1382464]
[1731814749557,15.1382464,218.16,218.1,4.585]
[1731814750361,15.1382464,218.16,218.1,16.0476]
[1731814751535,15.1382464,218.17,218.1,31.1858464]
[1731814751749,15.1382464,218.16,218.1,16.0476]
[1731814752533,4.5827,218.22,218.12,15.1382464]
[1731814752746,15.1382464,218.2,218.12,15.1382464]
[1731814752957,15.1382464,218.19,218.12,15.1382464]
[1731814753142,15.1382464,218.16,218.1,16.0476]
[1731814753336,15.1382464,218.15,218.1,16.0476]
[1731814753654,15.1382464,218.15,218.1,11.4626]
[1731814753964,15.1382464,218.16,218.1,11.4626]
[1731814754258,15.1382464,218.11,218.06,16.4901]
[1731814754437,15.1382464,218.11,218.06,21.0758]
[1731814754638,15.1382464,218.11,218.06,16.0504]
[1731814755064,15.1382464,218.08,218.06,11.4647]
[1731814755562,15.1382464,218.08,218.02,16.0535]
[1731814757543,15.1382464,218.07,218.02,16.0535]
[1731814758452,15.1382464,218.08,218.02,16.0535]
[1731814759266,15.1382464,218.12,218.05,15.1382464]
[1731814759440,15.1382464,218.13,218.06,15.23192102]
[1731814760133,15.1382464,218.12,218.05,15.1382464]
[1731814760336,15.1382464,218.12,218.06,0.34465462]
[1731814760554,15.1382464,218.12,218.07,4.5856]
[1731814760756,15.1382464,218.12,218.02,22.9336]
[1731814760757,15.1382464,218.08,218.02,22.9336]
[1731814760942,15.1382464,218.16,218.03,4.5863]
[1731814760943,15.1382464,218.06,218.03,4.5863]
[1731814761463,15.1382464,218.08,218.03,4.5863]
[1731814761757,15.1382464,218.08,218.03,16.0526]
[1731814762338,15.1382464,218.09,218.03,16.0526]
[1731814762762,15.1382464,218.06,218.03,16.0526]
[1731814762938,15.1382464,218.07,218.03,16.0526]
[1731814765643,15.1382464,218.07,218.03,11.4663]
[1731814767675,15.1382464,218.08,218.01,15.1382464]
[1731814768378,15.1382464,218.1,218.04,0.34465462]
[1731814768668,15.1382464,218.12,218.04,0.34465462]
[1731814768874,15.1382464,218.15,218.07,15.1382464]
[1731814769359,15.1382464,218.15,218.08,15.1382464]
[1731814769670,15.1382464,218.15,218.09,4.5852]
[1731814770060,15.1382464,218.13,218.08,11.4635]
[1731814770371,15.1382464,218.14,218.08,16.0489]
[1731814771579,15.1382464,218.17,218.1,0.34465462]
[1731814772261,15.1382464,218.2,218.13,0.09367462]
[1731814772749,15.1382464,218.23,218.15,15.48290102]
[1731814773773,15.1382464,218.23,218.16,16.0431]
[1731814774682,15.1382464,218.22,218.16,16.0431]
[1731814775764,15.1382464,218.23,218.17,15.0006]
[1731814777173,15.1382464,218.23,218.17,19.5839]
[1731814780788,15.1382464,218.22,218.17,19.5839]
[1731814781357,15.1382464,218.23,218.17,19.5839]
[1731814781885,4.5812,218.28,218.08,36.07696921]
[1731814781886,15.1382464,218.18,218.12,15.0006]
[1731814782061,15.1382464,218.15,218.12,15.0006]
[1731814782383,0.1,218.25,218.13,16.0453]
[1731814782558,15.1382464,218.19,218.13,16.0453]
[1731814783369,15.1382464,218.19,218.14,0.09367462]
[1731814783690,15.1382464,218.21,218.15,16.044]
[1731814783862,15.1382464,218.2,218.15,16.044]
[1731814786374,15.1382464,218.19,218.15,16.044]
[1731814786576,15.1382464,218.17,218.15,11.46]
[1731814788988,4.5816,218.26,218.15,11.46]
[1731814789191,15.1382464,218.21,218.15,11.46]
[1731814789684,15.1382464,218.2,218.15,11.46]
[1731814793090,15.1382464,218.16,218.07,15.6219]
[1731814793295,20.1,218.22,218.08,16.0488]
[1731814793471,15.1382464,218.14,218.08,16.0488]
[1731814793972,15.1382464,218.13,218.08,16.0488]
[1731814795579,15.1382464,218.14,218.09,0.21916462]
[1731814795793,15.1382464,218.17,218.1,15.1382464]
[1731814795991,15.1382464,218.19,218.13,0.09367462]
[1731814796294,15.1382464,218.21,218.14,0.12549]
[1731814796998,27.0895,218.29,218.19,0.09367462]
[1731814797174,15.1382464,218.28,218.21,0.12549]
[1731814797587,15.1382464,218.28,218.22,4.67617462]
[1731814798187,15.1382464,218.28,218.22,16.13247462]
[1731814799066,0.1,218.33,218.22,11.4563]
[1731814799282,15.1382464,218.26,218.22,11.4563]
[1731814799479,15.1382464,218.26,218.18,30.7601464]
[1731814799678,15.1382464,218.26,218.19,0.12549]
[1731814799894,15.1382464,218.26,218.19,0.21916462]
[1731814800272,15.1382464,218.23,218.18,27.0803]
[1731814801274,15.1382464,218.23,218.18,31.6636]
[1731814801597,15.1382464,218.21,218.18,15.6219]
[1731814801801,15.2382464,218.28,218.13,38.3093]
[1731814801802,15.1382464,218.19,218.13,38.3093]
[1731814802580,15.1382464,218.18,218.14,0.09367462]
[1731814802801,15.1382464,218.17,218.14,0.09367462]
[1731814802978,15.1382464,218.17,218.14,4.83508]
[1731814803308,15.1382464,218.17,218.14,4.5841]
[1731814804895,15.1382464,218.16,218.13,11.4605]
[1731814805103,4.5832,218.19,218.13,11.4605]
[1731814805104,15.1382464,218.15,218.13,11.4605]
[1731814805808,4.5832,218.19,218.08,27.085]
[1731814805809,15.1382464,218.14,218.08,27.085]
[1731814806101,15.1382464,218.1,218.05,4.5859]
[1731814806309,15.1382464,218.16,218.05,4.5859]
[1731814806310,15.1382464,218.09,218.05,4.5859]
[1731814806599,15.1382464,218.08,218.05,4.5859]
[1731814807609,15.1382464,218.07,218.04,11.4657]
[1731814807782,15.1382464,218.05,218.03,15.6094]
[1731814808102,15.1382464,218.05,217.98,15.1382464]
[1731814808103,15.1382464,218.05,218.01,4.5867]
[1731814808489,15.1382464,218.04,218.01,4.5867]
[1731814809100,15.1382464,218.04,217.99,16.0552]
[1731814809297,15.1382464,218.05,217.99,16.0552]
[1731814809510,15.1382464,218.05,217.99,31.1934464]
[1731814809702,4.5854,218.09,217.99,31.1934464]
[1731814809703,15.1382464,218.07,218.0,15.48290102]
[1731814809898,15.1382464,218.1,218.04,15.1382464]
[1731814810081,15.1382464,218.09,218.03,15.1382464]
[1731814810911,15.1382464,218.09,218.04,4.5863]
[1731814812095,15.1382464,218.13,218.06,15.1382464]
[1731814812387,15.1382464,218.14,218.07,15.1382464]
[1731814812797,15.1382464,218.16,218.09,15.1382464]
[1731814813014,15.1382464,218.16,218.09,19.7234464]
[1731814813397,15.1382464,218.17,218.1,15.1382464]
[1731814813991,15.1382464,218.18,218.11,15.48290102]
[1731814814395,15.1382464,218.21,218.14,15.1382464]
[1731814814809,19.7208464,218.22,218.14,15.1382464]
[1731814814985,19.7208464,218.22,218.15,4.584]
[1731814815503,15.1382464,218.24,218.16,15.48290102]
[1731814815815,10.8676,218.28,218.15,16.044]
[1731814815816,15.1382464,218.25,218.18,0.25098]
[1731814816016,15.1382464,218.19,218.15,16.044]
[1731814816892,15.1382464,218.19,218.15,11.46]
[1731814818108,15.1382464,218.2,218.14,0.34465462]
[1731814818315,15.1382464,218.23,218.16,15.1382464]
[1731814818689,15.1382464,218.22,218.15,15.1382464]
[1731814818916,15.1382464,218.21,218.14,15.48290102]
[1731814819403,15.1382464,218.21,218.15,4.584]
[1731814819729,15.1382464,218.18,218.11,4.83568]
[1731814820011,15.1382464,218.17,218.12,0.09367462]
[1731814820590,15.1382464,218.21,218.13,15.1382464]
[1731814820791,15.1382464,218.22,218.15,0.34465462]
[1731814821320,15.1382464,218.21,218.15,0.34465462]
[1731814821823,15.1382464,218.21,218.16,4.5837]
[1731814821989,4.5819,218.25,218.16,4.5837]
[1731814821990,15.1382464,218.22,218.16,4.5837]
[1731814822608,15.1382464,218.21,218.16,4.5837]
[1731814822802,15.1382464,218.22,218.16,4.5837]
[1731814822997,15.1382464,218.21,218.16,16.0431]
[1731814827200,15.1382464,218.2,218.16,16.0431]
[1731814827695,15.1382464,218.21,218.16,16.0431]
[1731814829613,15.1382464,218.17,218.11,16.0464]
[1731814829812,15.1382464,218.17,218.12,0.25098]
[1731814830218,15.1382464,218.17,218.13,0.09367462]
[1731814830597,15.1382464,218.17,218.14,4.5842]
[1731814832208,15.1382464,218.17,218.12,0.12549]
[1731814832415,15.1382464,218.15,218.12,4.5844]
[1731814833522,15.1382464,218.15,218.09,20.1946]
[1731814833523,15.1382464,218.14,218.09,20.1946]
[1731814833725,15.1382464,218.1,218.09,4.5852]
[1731814833912,15.1382464,218.1,218.07,11.4641]
[1731814834219,15.1382464,218.09,218.07,11.4641]
[1731814834403,15.1382464,218.08,218.07,11.4641]
[1731814834607,15.1382464,218.1,218.07,11.4641]
[1731814835422,15.1382464,218.09,218.07,11.4641]
[1731814835806,15.1382464,218.08,218.07,11.4641]
[1731814836011,15.1382464,218.09,218.07,11.4641]
[1731814836417,15.1382464,218.09,218.04,15.3155]
[1731814836418,15.1382464,218.08,218.04,4.5862]
[1731814837416,15.1382464,218.06,218.02,16.053]
[1731814837607,15.1382464,218.05,218.02,16.053]
[1731814837803,15.1382464,218.05,218.02,11.4665]
[1731814838123,15.1382464,218.06,218.02,11.4665]
[1731814839527,15.1382464,218.07,218.02,11.4665]
[1731814840829,15.1382464,218.05,218.02,11.4665]
[1731814841204,15.1382464,218.06,218.02,11.4665]
[1731814842512,15.1382464,218.05,218.02,11.4665]
[1731814842720,15.1382464,218.06,218.02,11.4665]
[1731814845220,15.1382464,218.11,218.04,15.1382464]
[1731814845409,15.1382464,218.11,218.05,0.34465462]
[1731814845738,15.1382464,218.1,218.05,0.34465462]
[1731814846722,15.1382464,218.1,218.03,38.9151304]
[1731814846924,15.1382464,218.09,218.05,11.4647]
[1731814847131,15.1382464,218.08,218.02,4.5865]
[1731814847431,15.1382464,218.06,218.02,4.5865]
[1731814847822,15.1382464,218.07,218.02,4.5865]
[1731814848515,15.1382464,218.08,218.03,0.21916462]
[1731814848823,15.1382464,218.09,218.03,0.21916462]
[1731814849430,15.1382464,218.09,218.04,0.12549]
[1731814849735,15.1382464,218.1,218.04,0.25098]
[1731814850618,15.1382464,218.06,218.02,11.4668]
[1731814851740,15.1382464,218.07,218.02,11.4668]
[1731814853545,15.1382464,218.1,218.03,31.53560102]
[1731814853918,4.5845,218.13,218.03,16.39735462]
[1731814853919,15.1382464,218.09,218.03,16.39735462]
[1731814854135,15.1382464,218.1,218.03,31.53560102]
[1731814854442,15.1382464,218.08,218.03,16.0527]
[1731814854647,15.1382464,218.09,218.03,16.0527]
[1731814855140,15.1382464,218.1,218.03,16.0527]
[1731814855351,15.1382464,218.1,218.04,0.34465462]
[1731814856650,15.1382464,218.1,218.05,4.5861]
[1731814859229,20.0,218.15,218.06,0.34465462]
[1731814859431,15.1382464,218.15,218.08,0.21916462]
[1731814859636,16.5517,218.2,218.1,0.21916462]
[1731814859938,4.5831,218.19,218.1,0.21916462]
[1731814860143,15.1382464,218.17,218.1,0.21916462]
[1731814860726,15.1382464,218.17,218.1,4.80406462]
[1731814860727,15.1382464,218.15,218.1,4.80406462]
[1731814862041,15.1382464,218.11,218.08,16.0484]
[1731814862249,15.1382464,218.09,218.04,31.2264]
[1731814862925,15.1382464,218.11,218.04,31.2264]
[1731814864040,15.1382464,218.11,218.05,0.21916462]
[1731814864558,15.1382464,218.11,218.06,4.5858]
[1731814864842,15.1382464,218.11,218.04,26.6401]
[1731814864843,15.1382464,218.09,218.04,26.6401]
[1731814865045,15.1382464,218.09,218.04,31.2262]
[1731814865932,15.1382464,218.11,218.05,16.39575462]
[1731814866132,4.5835,218.17,218.08,0.21916462]
[1731814866133,15.1382464,218.15,218.08,0.21916462]
[1731814866324,15.1382464,218.17,218.1,0.09367462]
[1731814866527,15.1382464,218.17,218.1,0.21916462]
[1731814867548,15.1382464,218.15,218.09,16.0479]
[1731814867735,15.1382464,218.13,218.09,16.0479]
[1731814868850,15.1382464,218.13,218.09,11.4628]
[1731814869747,15.1382464,218.16,218.1,0.34465462]
[1731814870055,15.1382464,218.18,218.1,24.12153862]
[1731814870850,15.1382464,218.18,218.1,39.25978502]
[1731814871027,15.1382464,218.17,218.11,16.0469]
[1731814871230,15.1382464,218.16,218.11,16.0469]
[1731814871934,15.1382464,218.18,218.12,0.21916462]
[1731814872250,15.1382464,218.18,218.13,4.5844]
[1731814872834,15.1382464,218.17,218.11,11.4621]
[1731814873046,15.1382464,218.17,218.11,16.0467]
[1731814873641,15.1382464,218.16,218.11,16.0467]
[1731814874151,15.1382464,218.17,218.11,16.0467]
[1731814876359,15.1382464,218.16,218.11,16.0467]
[1731814876857,15.1382464,218.16,218.11,11.4621]
[1731814877159,15.1382464,218.18,218.12,0.21916462]
[1731814878549,15.1382464,218.18,218.12,4.80366462]
[1731814879550,15.1382464,218.15,218.11,16.0469]
[1731814879849,15.1382464,218.17,218.11,16.0469]
[1731814880056,15.1382464,218.19,218.12,39.25978502]
[1731814880373,15.1382464,218.23,218.17,0.09367462]
[1731814880551,15.1382464,218.22,218.17,0.09367462]
[1731814880747,15.1382464,218.18,218.02,5.00362474]
[1731814881055,0.1,218.24,218.09,30.4463464]
[1731814881245,15.1382464,218.16,218.09,30.4463464]
[1731814881644,15.1382464,218.15,218.09,15.3081]
[1731814882036,15.1382464,218.16,218.09,15.3081]
[1731814882747,9.68154808,218.16,218.09,15.3081]
[1731814883351,9.68154808,218.19,218.12,0.21916462]
[1731814883743,9.68154808,218.17,218.12,0.21916462]
[1731814884061,9.68154808,218.17,218.12,4.80366462]
[1731814886167,9.68154808,218.19,218.12,16.26516462]
[1731814889270,9.68154808,218.19,218.14,0.09367462]
[1731814889441,9.68154808,218.19,218.14,0.21916462]
[1731814890043,4.5827,218.21,218.14,0.21916462]
[1731814890268,9.68154808,218.19,218.14,0.21916462]
[1731814890751,13.24022131,218.27,218.16,0.09367462]
[1731814890752,6.5177,218.27,218.16,0.09367462]
[1731814890946,9.68154808,218.21,218.16,0.21916462]
[1731814891147,9.68154808,218.21,218.14,16.0445]
[1731814891371,9.68154808,218.19,218.14,16.0445]
[1731814891672,9.68154808,218.19,218.15,0.09367462]
[1731814893766,9.68154808,218.19,218.15,4.67757462]
[1731814893964,9.68154808,218.2,218.15,16.13757462]
[1731814894172,9.68154808,218.21,218.15,16.13757462]
[1731814894380,9.68154808,218.22,218.16,0.12549]
[1731814894878,9.68154808,218.21,218.16,0.12549]
[1731814895869,9.68154808,218.23,218.19,0.09367462]
[1731814896977,9.68154808,218.23,218.19,4.67657462]
[1731814897851,9.68154808,218.24,218.19,4.67657462]
[1731814898157,9.68154808,218.23,218.19,4.67657462]
[1731814898355,9.68154808,218.22,218.19,4.67677462]
[1731814899256,9.68154808,218.24,218.19,4.67677462]
[1731814899471,9.68154808,218.23,218.19,4.67677462]
[1731814899857,9.68154808,218.22,218.19,4.67677462]
[1731814900168,9.68154808,218.23,218.19,4.67677462]
[1731814902480,9.68154808,218.24,218.19,4.67677462]
[1731814903359,9.68154808,218.24,218.19,16.13467462]
[1731814905353,15.7395,218.3,218.19,16.13467462]
[1731814905560,9.68154808,218.26,218.21,0.09367462]
[1731814906883,9.68154808,218.26,218.23,0.09367462]
[1731814908481,9.68154808,218.26,218.23,4.67597462]
[1731814910899,9.68154808,218.25,218.23,4.67597462]
[1731814914484,13.89546016,218.37,218.26,23.1799]
[1731814914677,4.5793,218.38,218.26,23.1799]
[1731814914979,9.68154808,218.35,218.28,0.09367462]
[1731814915379,9.68154808,218.35,218.3,0.09367462]
[1731814915571,4.5788,218.4,218.3,0.09367462]
[1731814915776,9.68154808,218.37,218.3,9.7752227]
[1731814915958,9.68154808,218.37,218.32,0.09367462]
[1731814916162,4.5788,218.4,218.32,0.09367462]
[1731814916382,0.5423044,218.41,218.34,0.09367462]
[1731814916582,9.68154808,218.4,218.34,4.67357462]
[1731814916880,0.5423044,218.41,218.36,0.09367462]
[1731814917184,0.5423044,218.41,218.38,0.09367462]
[1731814918888,0.5423044,218.41,218.38,14.3542227]
[1731814919475,0.5423044,218.41,218.38,4.67267462]
[1731814920784,0.5423044,218.41,218.38,14.3542227]
[1731814921395,0.5423044,218.41,218.4,9.7752227]
[1731814922064,0.5423044,218.41,218.4,48.75239502]
[1731814922468,0.5423044,218.41,218.4,0.09367462]
[1731814922669,0.5423044,218.41,218.4,9.7752227]
[1731814923479,0.5423044,218.41,218.4,14.3539227]
[1731814925095,0.5423044,218.41,218.4,4.67237462]
[1731814925300,0.5423044,218.41,218.4,14.3539227]
[1731814928672,0.5423044,218.41,218.4,0.09367462]
[1731814928875,10.22385248,218.41,218.33,11.45]
[1731814929072,9.68154808,218.39,218.33,11.45]
[1731814929275,9.68154808,218.39,218.33,16.0302]
[1731814929494,14.26024808,218.4,218.33,25.71174808]
[1731814929803,9.68154808,218.38,218.34,0.09367462]
[1731814929981,14.26024808,218.4,218.34,0.09367462]
[1731814930575,9.68154808,218.4,218.34,0.09367462]
[1731814930795,14.80245248,218.41,218.34,9.7752227]
[1731814930971,10.22385248,218.41,218.34,4.67357462]
[1731814931184,0.5423044,218.41,218.36,0.09367462]
[1731814931586,0.5423044,218.41,218.38,0.09367462]
[1731814931794,0.5423044,218.41,218.38,9.7752227]
[1731814931997,0.5423044,218.41,218.38,0.09367462]
[1731814935605,0.5423044,218.41,218.34,11.45]
[1731814935899,9.68154808,218.39,218.34,11.45]
[1731814936103,9.68154808,218.4,218.35,0.09367462]
[1731814936488,14.80245248,218.41,218.35,0.09367462]
[1731814936691,0.5423044,218.41,218.37,0.09367462]
[1731814937088,0.5423044,218.41,218.4,9.7752227]
[1731814937995,0.5423044,218.41,218.37,9.68154808]
[1731814938702,0.5423044,218.41,218.38,0.09367462]
[1731814939410,5.1209044,218.41,218.35,11.4495]
[1731814939987,5.1209044,218.41,218.35,21.13104808]
[1731814940810,5.1209044,218.41,218.36,9.68154808]
[1731814942282,5.1209044,218.41,218.37,9.68154808]
[1731814942605,0.5423044,218.41,218.37,9.68154808]
[1731814942808,0.5423044,218.41,218.36,9.68154808]
[1731814943108,0.5423044,218.41,218.35,16.0293]
[1731814943318,0.5423044,218.41,218.35,25.71084808]
[1731814944300,0.5423044,218.41,218.36,9.68154808]
[1731814945308,0.5423044,218.41,218.35,21.13104808]
[1731814945605,0.5423044,218.41,218.36,9.68154808]
[1731814948210,0.5423044,218.41,218.37,9.68154808]
[1731814949212,9.68154808,218.38,218.3,11.4516]
[1731814949418,9.68154808,218.37,218.3,9.68154808]
[1731814950289,9.68154808,218.37,218.29,4.581]
[1731814950491,9.68154808,218.36,218.3,9.68154808]
[1731814950812,9.68154808,218.37,218.3,9.68154808]
[1731814951413,4.5795,218.36,218.3,9.68154808]
[1731814952089,4.5795,218.36,218.27,16.12857462]
[1731814952090,14.26104808,218.36,218.27,16.12857462]
[1731814952393,14.26104808,218.36,218.22,11.4559]
[1731814952394,9.68154808,218.32,218.22,11.4559]
[1731814952598,9.68154808,218.33,218.26,9.68154808]
[1731814952806,9.68154808,218.33,218.21,4.5827]
[1731814952807,21.6098,218.35,218.28,9.68154808]
[1731814953124,21.6098,218.35,218.29,9.68154808]
[1731814953325,31.29134808,218.35,218.28,9.68154808]
[1731814953626,4.58,218.34,218.28,9.68154808]
[1731814955109,4.58,218.34,218.27,9.7752227]
[1731814957103,4.5804,218.32,218.27,0.09367462]
[1731814957711,4.5804,218.32,218.27,9.7752227]
[1731814958710,9.68154808,218.34,218.27,9.7752227]
[1731814958920,14.26174808,218.34,218.27,9.7752227]
[1731814959300,9.68154808,218.32,218.25,11.4547]
[1731814959498,9.68154808,218.31,218.25,11.4547]
[1731814960023,9.68154808,218.32,218.25,21.13624808]
[1731814960520,4.5806,218.31,218.25,21.13624808]
[1731814960922,4.5806,218.31,218.25,9.68154808]
[1731814961832,14.26214808,218.31,218.24,0.09367462]
[1731814962123,14.26214808,218.31,218.24,9.7752227]
[1731814962627,4.5806,218.31,218.25,9.68154808]
[1731814963829,9.68154808,218.33,218.26,9.68154808]
[1731814965101,9.68154808,218.33,218.21,11.4567]
[1731814965102,14.26154808,218.34,218.27,9.68154808]
[1731814965299,24.58,218.34,218.28,9.68154808]
[1731814966000,34.26154808,218.34,218.27,9.68154808]
[1731814967122,4.58,218.34,218.28,9.68154808]
[1731814968029,24.58,218.34,218.25,0.09367462]
[1731814968209,24.58,218.34,218.28,9.68154808]
[1731814968410,4.58,218.34,218.29,9.68154808]
[1731814968619,4.58,218.34,218.31,9.68154808]
[1731814968924,4.58,218.34,218.29,9.68154808]
[1731814970629,4.5803,218.33,218.29,9.68154808]
[1731814971425,4.5803,218.33,218.3,9.68154808]
[1731814971615,4.5803,218.33,218.29,9.68154808]
[1731814971816,4.5803,218.33,218.25,16.0364]
[1731814972015,4.5803,218.33,218.28,9.68154808]
[1731814972828,4.5803,218.33,218.29,9.68154808]
[1731814973023,26.1897,218.35,218.29,9.68154808]
[1731814974428,26.1897,218.35,218.26,0.09367462]
[1731814974606,26.1897,218.35,218.3,9.68154808]
[1731814974808,26.1897,218.35,218.29,9.68154808]
[1731814980321,9.68154808,218.32,218.21,23.776884]
[1731814980513,9.68154808,218.29,218.22,9.68154808]
[1731814981034,9.68154808,218.3,218.23,0.09367462]
[1731814981241,9.68154808,218.3,218.23,9.7752227]
[1731814981419,9.68154808,218.31,218.24,9.68154808]
[1731814981931,9.68154808,218.32,218.25,9.68154808]
[1731814982623,4.5806,218.31,218.25,9.68154808]
[1731814982823,14.26214808,218.31,218.24,9.68154808]
[1731814983133,9.68154808,218.3,218.22,4.67607462]
[1731814983313,9.68154808,218.3,218.24,0.09367462]
[1731814983509,9.68154808,218.31,218.24,0.09367462]
[1731814983716,9.68154808,218.31,218.24,9.7752227]
[1731814984144,9.68154808,218.3,218.24,0.09367462]
[1731814984350,9.68154808,218.27,218.21,11.4567]
[1731814984523,9.68154808,218.28,218.22,0.09367462]
[1731814985031,9.68154808,218.27,218.15,22.97411801]
[1731814985234,9.68154808,218.27,218.2,9.68154808]
[1731814985822,4.5816,218.26,218.21,9.68154808]
[1731814986327,9.68154808,218.22,218.15,20.86246609]
[1731814986531,9.68154808,218.24,218.17,9.68154808]
[1731814986732,25.964,218.26,218.2,9.68154808]
[1731814987452,9.68154808,218.24,218.15,6.59701801]
[1731814987642,9.68154808,218.22,218.13,4.5843]
[1731814987977,4.5821,218.24,218.19,9.68154808]
[1731814988317,4.5821,218.24,218.18,9.68154808]
[1731814989642,4.5821,218.24,218.19,9.68154808]
[1731814990047,4.5821,218.24,218.2,9.68154808]
[1731814991638,4.5821,218.24,218.21,9.68154808]
[1731814992948,4.5821,218.24,218.22,9.68154808]
[1731814993244,24.5808,218.3,218.23,9.68154808]
[1731814993541,24.5808,218.3,218.24,9.68154808]
[1731814993843,34.26234808,218.3,218.23,9.68154808]
[1731814994442,24.5808,218.3,218.24,9.68154808]
[1731814994941,20.0,218.27,218.12,17.38689633]
[1731814995154,20.0,218.25,218.19,9.68154808]
[1731814996446,4.5821,218.24,218.19,9.68154808]
[1731814996947,4.5821,218.24,218.2,9.68154808]
[1731814997252,4.5821,218.24,218.15,0.09367462]
[1731814997437,4.5821,218.24,218.2,9.68154808]
[1731814998227,4.5821,218.24,218.21,9.68154808]
[1731814998428,30.06923348,218.31,218.23,9.68154808]
[1731814998622,4.581,218.29,218.24,9.68154808]
[1731814999760,4.581,218.29,218.27,9.68154808]
[1731815000141,4.581,218.29,218.26,9.68154808]
[1731815000353,14.26254808,218.29,218.18,15.1408]
[1731815000659,4.581,218.29,218.23,9.68154808]
[1731815000833,4.581,218.29,218.25,9.68154808]
[1731815001246,24.581,218.29,218.25,9.68154808]
[1731815001629,4.581,218.29,218.25,9.68154808]
[1731815002945,4.581,218.29,218.21,0.09367462]
[1731815003152,4.581,218.29,218.23,9.68154808]
[1731815005055,4.581,218.29,218.25,9.68154808]
[1731815008734,4.581,218.29,218.24,9.68154808]
[1731815012862,4.581,218.29,218.25,9.68154808]
[1731815013666,23.2276,218.31,218.27,9.68154808]
[1731815014157,24.5802,218.33,218.27,9.68154808]
[1731815014866,24.5802,218.33,218.26,9.68154808]
[1731815015039,9.68154808,218.32,218.25,9.68154808]
[1731815015357,9.68154808,218.28,218.19,16.0407]
[1731815015662,9.68154808,218.28,218.21,9.68154808]
[1731815015956,4.5814,218.27,218.21,9.68154808]
[1731815017051,4.5814,218.27,218.2,0.09367462]
[1731815017249,4.5814,218.27,218.21,9.68154808]
[1731815017656,4.5814,218.27,218.22,9.68154808]
[1731815018364,4.5814,218.27,218.21,9.68154808]
[1731815018965,4.5814,218.27,218.19,16.0409]
[1731815019151,4.5814,218.27,218.21,9.68154808]
[1731815020661,4.5814,218.27,218.22,9.68154808]
[1731815021062,9.68154808,218.26,218.19,11.4578]
[1731815021367,9.68154808,218.22,218.16,13.95233588]
[1731815022350,9.68154808,218.22,218.15,23.63388396]
[1731815022549,20.0,218.22,218.17,9.68154808]
[1731815023154,24.5823,218.23,218.17,9.68154808]
[1731815023353,34.26384808,218.23,218.16,9.68154808]
[1731815023551,34.26384808,218.23,218.16,23.63388396]
[1731815024365,34.26384808,218.23,218.16,13.95233588]
[1731815024556,34.26384808,218.23,218.16,23.63388396]